bitfinex/quotes_BTCUSD_20241101
["timestamp","ask_amount","ask_price","bid_price","bid_amount"]
[1730424100216,0.16570789,70091.0,70085.0,0.076325]
[1730424100217,0.005,70089.0,70085.0,0.076325]
[1730424100417,0.005,70089.0,70086.0,0.14911955]
[1730424100596,0.005,70089.0,70086.0,0.13845525]
[1730424100842,0.01603689,70088.0,70086.0,0.13845525]
[1730424102507,0.01603689,70088.0,70087.0,0.142679]
[1730424102719,0.01603689,70088.0,70087.0,0.29465505]
[1730424102945,0.005,70091.0,70088.0,0.142676]
[1730424103165,0.005,70091.0,70089.0,0.13845525]
[1730424103420,0.002,70090.0,70089.0,0.13845525]
[1730424103664,0.01603689,70090.0,70089.0,0.28113025]
[1730424104131,0.005,70093.0,70090.0,0.142672]
[1730424104329,0.005,70094.0,70091.0,0.13845525]
[1730424104607,0.005,70094.0,70091.0,0.42379725]
[1730424104827,0.005,70094.0,70091.0,0.56646725]
[1730424105059,0.005,70094.0,70091.0,0.28112525]
[1730424105285,0.01603689,70093.0,70091.0,0.13845525]
[1730424105731,0.01603689,70093.0,70092.0,0.319369]
[1730424105957,0.01603689,70093.0,70092.0,0.45782425]
[1730424106288,0.01603689,70093.0,70092.0,0.4684981]
[1730424106431,0.005,70099.0,70092.0,0.4684971]
[1730424106682,0.002,70098.0,70093.0,0.1491291]
[1730424106925,0.01604083,70098.0,70094.0,0.15333885]
[1730424107161,0.01604083,70098.0,70095.0,0.1491291]
[1730424107398,0.01604083,70098.0,70096.0,0.01067385]
[1730424107650,0.01604083,70098.0,70097.0,0.142659]
[1730424108135,0.21755491,70102.0,70098.0,0.142657]
[1730424108377,0.21755491,70102.0,70096.0,0.28111525]
[1730424108618,0.005,70102.0,70097.0,0.15334503]
[1730424108884,0.01604083,70101.0,70097.0,0.142658]
[1730424109119,0.01604083,70101.0,70098.0,0.13845525]
[1730424109334,0.01604083,70101.0,70099.0,0.142653]
[1730424109606,0.005,70104.0,70099.0,0.28110825]
[1730424109814,0.005,70104.0,70100.0,0.142652]
[1730424110093,0.005,70105.0,70099.0,0.13845525]
[1730424110309,0.434914,70108.0,70100.0,0.13845525]
[1730424110529,0.434914,70108.0,70101.0,0.28110525]
[1730424110530,0.005,70105.0,70101.0,0.28110525]
[1730424111140,0.005,70109.0,70104.0,0.0903]
[1730424111358,0.005,70113.0,70107.0,0.142638]
[1730424111591,0.005,70113.0,70108.0,0.28109025]
[1730424111839,0.005,70113.0,70110.0,0.142631]
[1730424112084,0.005,70113.0,70110.0,0.28108725]
[1730424112328,0.005,70115.0,70110.0,0.13845525]
[1730424112567,0.005,70115.0,70111.0,0.14263]
[1730424112802,0.005,70115.0,70110.0,0.13845525]
[1730424112803,0.005,70113.0,70110.0,0.13845525]
[1730424114279,0.002,70111.0,70110.0,0.13845525]
[1730424114533,0.002,70112.0,70110.0,0.13845525]
[1730424114767,0.005,70113.0,70110.0,0.13845525]
[1730424115929,0.002,70111.0,70110.0,0.13845525]
[1730424117638,0.005,70110.0,70104.0,0.0903]
[1730424117856,0.142639,70107.0,70105.0,0.13845525]
[1730424118121,0.005,70108.0,70105.0,0.13845525]
[1730424118334,0.142641,70106.0,70105.0,0.13845525]
[1730424118553,0.01544636,70107.0,70105.0,0.13845525]
[1730424118776,0.142639,70107.0,70105.0,0.13845525]
[1730424118998,0.01544636,70106.0,70105.0,0.13845525]
[1730424119244,0.01744636,70106.0,70105.0,0.13845525]
[1730424119973,0.16008736,70106.0,70105.0,0.13845525]
[1730424120221,0.002,70102.0,70099.0,0.01068264]
[1730424120435,0.002,70102.0,70100.0,0.13845525]
[1730424120897,0.01544636,70101.0,70100.0,0.13845525]
[1730424121685,0.01544636,70101.0,70094.0,0.00873382]
[1730424121686,0.142654,70100.0,70094.0,0.142665]
[1730424121762,0.01544636,70101.0,70096.0,0.01068271]
[1730424122012,0.14765,70102.0,70095.0,0.142662]
[1730424122013,0.14765,70102.0,70097.0,0.13845525]
[1730424122215,0.005,70102.0,70097.0,0.13845525]
[1730424122418,0.142651,70101.0,70097.0,0.13845525]
[1730424122631,0.002,70100.0,70097.0,0.13845525]
[1730424122840,0.005,70105.0,70097.0,0.13845525]
[1730424123057,0.01544636,70099.0,70097.0,0.13845525]
[1730424123289,0.005,70104.0,70097.0,0.13845525]
[1730424123504,0.144652,70101.0,70097.0,0.13845525]
[1730424123727,0.002,70101.0,70097.0,0.13845525]
[1730424123961,0.002,70098.0,70097.0,0.13845525]
[1730424124780,0.16010336,70098.0,70097.0,0.13845525]
[1730424125884,0.142666,70094.0,70087.0,0.142678]
[1730424126119,0.005,70095.0,70088.0,0.13845525]
[1730424126335,0.01544636,70098.0,70087.0,0.01068537]
[1730424126336,0.142677,70088.0,70087.0,0.01068537]
[1730424126538,0.435021,70090.0,70087.0,0.14914062]
[1730424126754,0.142675,70089.0,70087.0,0.13845525]
[1730424126955,0.15810453,70089.0,70087.0,0.13845525]
[1730424127978,0.15810453,70089.0,70085.0,0.080525]
[1730424127979,0.14268,70087.0,70085.0,0.000825]
[1730424128187,0.14268,70087.0,70086.0,0.13845525]
[1730424129034,0.005,70089.0,70086.0,0.13845525]
[1730424129295,0.142679,70087.0,70086.0,0.13845525]
[1730424130214,0.144679,70087.0,70086.0,0.13845525]
[1730424130620,0.144681,70086.0,70085.0,0.000825]
[1730424130833,0.149681,70086.0,70085.0,0.000825]
[1730424131854,0.264181,70086.0,70085.0,0.000825]
[1730424132061,0.43223438,70086.0,70085.0,0.000825]
[1730424132276,0.79223438,70086.0,70085.0,0.000825]
[1730424132483,0.93068963,70086.0,70085.0,0.000825]
[1730424132708,0.94611916,70086.0,70085.0,0.000825]
[1730424132903,0.94611916,70086.0,70080.0,0.005]
[1730424132904,0.015,70081.0,70080.0,0.005]
[1730424133061,0.71019203,70081.0,70080.0,0.005]
[1730424133583,0.72562156,70081.0,70080.0,0.005]
[1730424134901,0.72562156,70081.0,70080.0,0.005825]
[1730424140843,0.57716631,70081.0,70080.0,0.005825]
[1730424141057,0.55916631,70081.0,70080.0,0.005825]
[1730424141548,0.55416631,70081.0,70080.0,0.005825]
[1730424141774,0.55916631,70081.0,70080.0,0.005825]
[1730424142010,0.37906631,70081.0,70080.0,0.005825]
[1730424142523,0.40706631,70081.0,70080.0,0.005825]
[1730424143880,0.40206631,70081.0,70080.0,0.005825]
[1730424144723,0.28812153,70081.0,70080.0,0.005825]
[1730424148377,0.37322153,70081.0,70080.0,0.005825]
[1730424148984,0.36822153,70081.0,70080.0,0.005825]
[1730424149203,0.51167678,70081.0,70080.0,0.005825]
[1730424149343,0.60637678,70081.0,70080.0,0.005825]
[1730424149549,0.74485408,70081.0,70080.0,0.005825]
[1730424149756,0.60637678,70081.0,70080.0,0.005825]
[1730424150448,0.72032156,70081.0,70080.0,0.005825]
[1730424150798,0.60637678,70081.0,70080.0,0.005825]
[1730424151174,0.329704,70075.0,70068.0,0.000806]
[1730424151369,0.81904881,70075.0,70068.0,0.000806]
[1730424151668,0.97251415,70075.0,70068.0,0.000806]
[1730424151867,0.85856937,70075.0,70068.0,0.000806]
[1730424152125,0.005,70065.0,70064.0,0.20892469]
[1730424152292,0.28466878,70065.0,70064.0,0.20892469]
[1730424152494,0.142738,70058.0,70057.0,0.0003]
[1730424153228,0.15772604,70058.0,70057.0,0.0003]
[1730424157939,0.01498804,70058.0,70057.0,0.0003]
[1730424158158,0.01498804,70058.0,70057.0,0.0822]
[1730424158365,0.005,70060.0,70057.0,0.0822]
[1730424158828,0.01496555,70059.0,70057.0,0.0822]
[1730424159050,0.15770255,70059.0,70057.0,0.0822]
[1730424159203,0.142737,70059.0,70057.0,0.0822]
[1730424159529,0.01496555,70058.0,70057.0,0.0822]
[1730424159951,0.005,70060.0,70057.0,0.083025]
[1730424160189,0.005,70060.0,70058.0,0.0936]
[1730424160587,0.005,70060.0,70058.0,0.236337]
[1730424160774,0.005,70060.0,70058.0,0.0936]
[1730424162801,0.01485852,70059.0,70058.0,0.0936]
[1730424163274,0.005,70061.0,70058.0,0.0936]
[1730424163508,0.01485852,70059.0,70058.0,0.0936]
[1730424163772,0.142735,70060.0,70058.0,0.0936]
[1730424164009,0.01485852,70059.0,70058.0,0.0936]
[1730424164471,0.01485852,70059.0,70057.0,0.083025]
[1730424165129,0.142738,70058.0,70057.0,0.083025]
[1730424165621,0.005,70061.0,70057.0,0.083025]
[1730424165857,0.01485852,70058.0,70057.0,0.083025]
[1730424166090,0.142736,70060.0,70057.0,0.083025]
[1730424166322,0.01486477,70058.0,70057.0,0.083025]
[1730424166548,0.005,70061.0,70057.0,0.225765]
[1730424167006,0.01486477,70060.0,70057.0,0.083025]
[1730424168215,0.01486477,70060.0,70057.0,0.225764]
[1730424169143,0.01486477,70060.0,70059.0,0.142736]
[1730424170339,0.01486477,70060.0,70057.0,0.225765]
[1730424171071,0.01486477,70060.0,70057.0,0.083025]
[1730424174116,0.01486477,70060.0,70057.0,0.225765]
[1730424175289,0.01486477,70060.0,70058.0,0.142738]
[1730424175510,0.01486477,70060.0,70057.0,0.083025]
[1730424177018,0.01486477,70060.0,70059.0,0.234336]
[1730424177165,0.01486477,70060.0,70059.0,0.45859238]
[1730424177386,0.21420491,70064.0,70063.0,0.142728]
[1730424177588,0.21420491,70064.0,70057.0,0.001125]
[1730424177589,0.142738,70058.0,70057.0,0.001125]
[1730424177882,0.16260475,70058.0,70057.0,0.001125]
[1730424182651,0.18560475,70058.0,70057.0,0.001125]
[1730424187887,0.15760475,70058.0,70057.0,0.001125]
[1730424192416,0.01486675,70058.0,70057.0,0.001125]
[1730424192638,0.01486675,70058.0,70057.0,0.39911972]
[1730424192908,0.00165,70064.0,70063.0,0.142728]
[1730424193140,0.00165,70064.0,70063.0,0.36408325]
[1730424194038,0.00165,70064.0,70063.0,0.58651945]
[1730424194590,0.00165,70064.0,70063.0,0.47257467]
[1730424195549,0.00165,70064.0,70063.0,0.57582803]
[1730424196706,0.00165,70064.0,70063.0,0.46188325]
[1730424197715,0.00165,70064.0,70063.0,0.22135525]
[1730424197888,0.144376,70064.0,70063.0,0.13845525]
[1730424198166,0.144376,70064.0,70059.0,0.03926605]
[1730424198167,0.005,70062.0,70059.0,0.02858]
[1730424198373,0.142738,70058.0,70057.0,0.001125]
[1730424202239,0.147738,70058.0,70057.0,0.001125]
[1730424202639,0.36038278,70058.0,70057.0,0.001125]
[1730424202841,0.246438,70058.0,70057.0,0.001125]
[1730424203487,0.170738,70058.0,70057.0,0.001125]
[1730424205315,0.28468278,70058.0,70057.0,0.001125]
[1730424206943,0.170738,70058.0,70057.0,0.001125]
[1730424207601,0.18558876,70058.0,70057.0,0.001125]
[1730424209430,0.29953354,70058.0,70057.0,0.001125]
[1730424210057,0.39953354,70058.0,70057.0,0.001125]
[1730424211223,0.57303354,70058.0,70057.0,0.001125]
[1730424218128,0.58303354,70058.0,70057.0,0.001125]
[1730424218730,0.58303354,70058.0,70050.0,1e-06]
[1730424218731,0.457653,70051.0,70050.0,1e-06]
[1730424218951,0.82399781,70051.0,70050.0,1e-06]
[1730424219159,0.83883283,70051.0,70050.0,1e-06]
[1730424219495,0.72488805,70051.0,70050.0,1e-06]
[1730424219623,0.97731013,70051.0,70050.0,1e-06]
[1730424220225,0.86336535,70051.0,70050.0,1e-06]
[1730424220431,0.97731013,70051.0,70050.0,1e-06]
[1730424220871,0.97931013,70051.0,70050.0,1e-06]
[1730424221502,0.55942578,70037.0,70036.0,0.000807]
[1730424221795,0.69788103,70037.0,70036.0,0.000807]
[1730424222001,0.7126884,70037.0,70036.0,0.000807]
[1730424222550,0.80430875,70037.0,70036.0,0.000807]
[1730424223405,0.80430875,70037.0,70029.0,0.00059021]
[1730424223406,0.81493978,70030.0,70029.0,0.00059021]
[1730424223584,0.95339503,70030.0,70029.0,0.00059021]
[1730424224070,0.9682024,70030.0,70029.0,0.00059021]
[1730424224497,0.36420237,70030.0,70029.0,0.00059021]
[1730424224669,0.16228798,70030.0,70029.0,0.00059021]
[1730424224880,0.06228798,70030.0,70029.0,0.00059021]
[1730424225070,0.30508298,70030.0,70029.0,0.00059021]
[1730424225628,0.16228798,70030.0,70029.0,0.00059021]
[1730424225873,0.32808298,70030.0,70029.0,0.00059021]
[1730424226247,0.08528798,70030.0,70029.0,0.00059021]
[1730424226457,0.06228798,70030.0,70029.0,0.00059021]
[1730424227738,0.02141149,70030.0,70029.0,0.31514546]
[1730424227944,0.81934694,70041.0,70029.0,0.31514546]
[1730424227945,0.12744185,70041.0,70040.0,0.328875]
[1730424228175,0.12744185,70041.0,70040.0,0.58127503]
[1730424228403,0.12744185,70041.0,70040.0,0.57627503]
[1730424228976,0.12744185,70041.0,70040.0,0.58127503]
[1730424229671,0.21255491,70054.0,70053.0,0.142749]
[1730424229896,0.21255491,70054.0,70053.0,0.28120425]
[1730424230108,0.21255491,70063.0,70062.0,0.14273]
[1730424230571,0.00165,70064.0,70060.0,0.142734]
[1730424231023,0.00165,70064.0,70059.0,0.142736]
[1730424231681,0.00165,70064.0,70062.0,0.142729]
[1730424231908,0.00165,70064.0,70063.0,0.142728]
[1730424232936,0.00165,70064.0,70063.0,0.28118325]
[1730424235098,0.00165,70064.0,70063.0,0.39512803]
[1730424237185,0.00165,70064.0,70063.0,0.40012803]
[1730424237591,0.00165,70064.0,70063.0,0.40512803]
[1730424239158,0.00165,70064.0,70063.0,0.58832803]
[1730424239545,0.00165,70064.0,70063.0,0.68162803]
[1730424240655,0.00165,70064.0,70063.0,0.67662803]
[1730424241158,0.00165,70064.0,70063.0,0.68162803]
[1730424241840,0.21255491,70078.0,70075.0,0.005]
[1730424242062,0.21255491,70078.0,70077.0,0.35514478]
[1730424242273,0.00165,70085.0,70084.0,0.147685]
[1730424242469,0.00165,70085.0,70084.0,0.58633823]
[1730424242699,0.00165,70085.0,70084.0,0.58348503]
[1730424244235,0.00165,70085.0,70084.0,0.59244229]
[1730424244445,0.00165,70085.0,70084.0,0.59444229]
[1730424244853,0.00165,70085.0,70084.0,0.59244229]
[1730424245851,0.00165,70085.0,70084.0,0.59444229]
[1730424247190,0.00165,70085.0,70084.0,0.69364229]
[1730424248477,0.00165,70097.0,70096.0,0.229561]
[1730424248658,0.00165,70097.0,70096.0,0.48196103]
[1730424250452,0.00165,70097.0,70096.0,0.57696103]
[1730424251079,0.00165,70097.0,70096.0,0.67696103]
[1730424251496,0.00165,70097.0,70096.0,0.79090581]
[1730424252102,0.00165,70097.0,70096.0,0.79963257]
[1730424253356,0.00165,70097.0,70096.0,0.68568779]
[1730424253488,0.00165,70097.0,70096.0,0.79963257]
[1730424253686,0.21255491,70115.0,70106.0,0.01]
[1730424253910,0.21255491,70115.0,70106.0,0.58074103]
[1730424255695,0.0769,70119.0,70106.0,0.50504103]
[1730424256345,0.142622,70116.0,70106.0,0.38609625]
[1730424256589,0.0769,70119.0,70096.0,0.005]
[1730424256590,0.285263,70111.0,70096.0,0.005]
[1730424256795,0.21255491,70115.0,70097.0,0.13845525]
[1730424256796,0.1714,70106.0,70097.0,0.13845525]
[1730424257002,0.1714,70106.0,70093.0,0.21255491]
[1730424257003,0.023,70105.0,70093.0,0.21255491]
[1730424257219,0.023,70105.0,70088.0,0.285354]
[1730424257220,0.023,70103.0,70094.0,0.21255491]
[1730424257441,0.023,70103.0,70084.0,0.50292391]
[1730424257442,0.11394478,70100.0,70084.0,0.21255491]
[1730424257672,0.142683,70085.0,70084.0,0.21255491]
[1730424257895,0.1559788,70085.0,70084.0,0.21255491]
[1730424258109,0.0132958,70085.0,70081.0,0.21255491]
[1730424258327,0.14268,70087.0,70081.0,0.21255491]
[1730424258751,0.142677,70089.0,70084.0,0.147685]
[1730424258956,0.285331,70094.0,70084.0,0.147685]
[1730424258957,0.023,70093.0,70086.0,0.14268]
[1730424259183,0.14267,70092.0,70087.0,0.142678]
[1730424259413,0.023,70093.0,70087.0,0.142678]
[1730424259654,0.023,70093.0,70086.0,0.14268]
[1730424259655,0.285339,70092.0,70086.0,0.14268]
[1730424259900,0.142674,70090.0,70085.0,0.11394478]
[1730424260105,0.142674,70090.0,70085.0,0.25662778]
[1730424260359,0.023,70093.0,70082.0,0.13845525]
[1730424260612,0.142686,70084.0,70082.0,0.13845525]
[1730424260838,0.142687,70083.0,70082.0,0.13845525]
[1730424261077,0.428044,70086.0,70076.0,0.1427]
[1730424261339,0.428044,70086.0,70074.0,0.285409]
[1730424261340,0.285363,70086.0,70078.0,0.21255491]
[1730424261597,0.285371,70084.0,70077.0,0.13845525]
[1730424261801,0.142692,70081.0,70077.0,0.28115525]
[1730424262005,0.142689,70083.0,70077.0,0.28115525]
[1730424262205,0.285371,70084.0,70077.0,0.13845525]
[1730424262645,0.142687,70084.0,70077.0,0.13845525]
[1730424262850,0.078,70087.0,70079.0,0.285391]
[1730424263053,0.142672,70091.0,70080.0,0.25240003]
[1730424263259,0.21255491,70092.0,70080.0,0.25240003]
[1730424263260,0.21255491,70092.0,70088.0,0.142676]
[1730424263460,0.0817,70098.0,70081.0,0.0028535]
[1730424263461,0.023,70096.0,70081.0,0.0028535]
[1730424263611,0.14267,70092.0,70086.0,0.14268]
[1730424263824,0.142671,70091.0,70086.0,0.14268]
[1730424264233,0.142671,70091.0,70087.0,0.142679]
[1730424264621,0.142675,70090.0,70082.0,0.63638616]
[1730424264823,0.285343,70091.0,70082.0,0.13845525]
[1730424265036,0.14268,70087.0,70082.0,0.28114325]
[1730424265281,0.285339,70092.0,70082.0,0.13845525]
[1730424265458,0.142677,70089.0,70082.0,0.13845525]
[1730424265798,0.142679,70088.0,70082.0,0.13845525]
[1730424265971,0.023,70093.0,70080.0,0.21755491]
[1730424265972,0.142685,70085.0,70080.0,0.147692]
[1730424266223,0.142689,70083.0,70081.0,0.13845525]
[1730424266476,0.142689,70082.0,70081.0,0.13845525]
[1730424266658,0.142689,70082.0,70069.0,0.285432]
[1730424266659,0.023,70082.0,70069.0,0.285432]
[1730424266998,0.142704,70075.0,70073.0,0.21255491]
[1730424267224,0.285384,70081.0,70073.0,0.21255491]
[1730424267225,0.142706,70074.0,70073.0,0.21255491]
[1730424267494,0.142708,70073.0,70069.0,0.142714]
[1730424267797,0.142703,70076.0,70070.0,0.21255491]
[1730424268004,0.023,70080.0,70072.0,0.142709]
[1730424268199,0.01322969,70075.0,70073.0,0.142708]
[1730424268408,0.142702,70077.0,70072.0,0.14271]
[1730424268603,0.01322969,70074.0,70070.0,0.285428]
[1730424268807,0.142703,70076.0,70071.0,0.14271]
[1730424269011,0.142701,70077.0,70071.0,0.142711]
[1730424269255,0.01322969,70075.0,70069.0,0.285432]
[1730424269470,0.023,70079.0,70073.0,0.142707]
[1730424269624,0.142698,70078.0,70074.0,0.142706]
[1730424269830,0.01322969,70078.0,70074.0,0.142704]
[1730424270296,0.01322969,70078.0,70071.0,0.285424]
[1730424270297,0.142702,70077.0,70071.0,0.142711]
[1730424270501,0.01322969,70078.0,70059.0,0.002]
[1730424270502,0.01322969,70078.0,70064.0,0.11394478]
[1730424270726,0.142703,70076.0,70070.0,0.142713]
[1730424270900,0.142707,70074.0,70069.0,0.142714]
[1730424271138,0.142707,70074.0,70064.0,0.11394478]
[1730424271139,0.023,70082.0,70064.0,0.11894478]
[1730424271325,0.023,70075.0,70065.0,0.21255491]
[1730424271638,0.142721,70067.0,70065.0,0.21255491]
[1730424271788,0.142717,70069.0,70065.0,0.21255491]
[1730424271967,0.0131941,70066.0,70063.0,0.143551]
[1730424272173,0.142718,70068.0,70063.0,0.28200625]
[1730424272368,0.0131941,70065.0,70063.0,0.28200625]
[1730424272617,0.142718,70068.0,70063.0,0.28200625]
[1730424272770,0.0131941,70064.0,70063.0,0.28200625]
[1730424272978,0.142718,70068.0,70063.0,0.28200625]
[1730424273197,0.0131941,70064.0,70063.0,0.28200625]
[1730424273395,0.142718,70068.0,70063.0,0.28200625]
[1730424273599,0.0131941,70064.0,70063.0,0.28200625]
[1730424273811,0.142718,70068.0,70063.0,0.28200625]
[1730424274048,0.0131941,70064.0,70063.0,0.28700625]
[1730424274282,0.142716,70069.0,70065.0,0.02858]
[1730424274612,0.0131941,70068.0,70065.0,0.02858]
[1730424275633,0.0131941,70068.0,70064.0,0.142726]
[1730424275988,0.1559121,70068.0,70064.0,0.142726]
[1730424276393,0.1559121,70068.0,70065.0,0.02858]
[1730424276620,0.14272,70067.0,70064.0,0.02858]
[1730424277123,0.142724,70065.0,70064.0,0.02858]
[1730424277507,0.142726,70064.0,70063.0,0.000823]
[1730424278331,0.0131941,70064.0,70063.0,0.000823]
[1730424278513,0.142725,70065.0,70063.0,0.000823]
[1730424278719,0.0131941,70064.0,70063.0,0.000823]
[1730424279543,0.142725,70065.0,70063.0,0.000823]
[1730424279909,0.285438,70068.0,70063.0,0.000823]
[1730424279910,0.1559201,70064.0,70063.0,0.000823]
[1730424280139,0.0131941,70064.0,70063.0,0.000823]
[1730424281184,0.0131941,70064.0,70063.0,0.143551]
[1730424281386,0.142715,70070.0,70064.0,0.142725]
[1730424281600,0.142717,70069.0,70064.0,0.142725]
[1730424282722,0.0131714,70068.0,70064.0,0.142725]
[1730424283871,0.0131714,70068.0,70063.0,0.000823]
[1730424283872,0.0131714,70068.0,70067.0,0.14272]
[1730424284061,0.0131714,70068.0,70066.0,0.142721]
[1730424284285,0.142713,70071.0,70065.0,0.285448]
[1730424284286,0.142713,70071.0,70067.0,0.1713]
[1730424284688,0.0916,70077.0,70067.0,0.1713]
[1730424284689,0.023,70075.0,70069.0,0.142715]
[1730424284893,0.165709,70073.0,70068.0,0.142717]
[1730424285094,0.14271,70072.0,70068.0,0.142717]
[1730424285420,0.14271,70072.0,70067.0,0.14272]
[1730424286088,0.28542,70072.0,70063.0,0.13927825]
[1730424286255,0.023,70078.0,70063.0,0.38041316]
[1730424286466,0.142716,70070.0,70064.0,0.142725]
[1730424286645,0.142716,70070.0,70065.0,0.142723]
[1730424287047,0.142716,70070.0,70066.0,0.142722]
[1730424287451,0.285404,70076.0,70065.0,0.285449]
[1730424287720,0.142713,70071.0,70066.0,0.142721]
[1730424288054,0.2854,70077.0,70069.0,0.142715]
[1730424288236,0.165708,70073.0,70069.0,0.142715]
[1730424288446,0.142711,70072.0,70067.0,0.142719]
[1730424288815,0.142711,70072.0,70068.0,0.142717]
[1730424290659,0.142711,70072.0,70067.0,0.14272]
[1730424290869,0.380075,70084.0,70067.0,0.14272]
[1730424290870,0.142712,70071.0,70067.0,0.14272]
[1730424291071,0.142704,70075.0,70071.0,0.142711]
[1730424291294,0.142708,70073.0,70068.0,0.142718]
[1730424292171,0.2854,70077.0,70066.0,0.142721]
[1730424292172,0.285414,70074.0,70066.0,0.142721]
[1730424292358,0.142713,70071.0,70066.0,0.142721]
[1730424292783,0.142713,70071.0,70063.0,0.35183316]
[1730424292986,0.285414,70074.0,70063.0,0.35183316]
[1730424292987,0.023,70074.0,70065.0,0.285447]
[1730424293232,0.165706,70074.0,70066.0,0.285445]
[1730424293432,0.142708,70073.0,70068.0,0.142717]
[1730424294484,0.023,70076.0,70071.0,0.142711]
[1730424294637,0.142703,70076.0,70070.0,0.142712]
[1730424294838,0.023,70074.0,70068.0,0.285437]
[1730424295042,0.165706,70074.0,70068.0,0.285437]
[1730424295246,0.285406,70076.0,70067.0,0.285441]
[1730424295247,0.023,70075.0,70067.0,0.285441]
[1730424295449,0.0131714,70073.0,70070.0,0.142712]
[1730424295647,0.165705,70075.0,70070.0,0.142712]
[1730424295851,0.01317694,70072.0,70067.0,0.285441]
[1730424296072,0.142708,70073.0,70067.0,0.285441]
[1730424296313,0.142708,70073.0,70069.0,0.142715]
[1730424296603,0.165705,70075.0,70070.0,0.142714]
[1730424296794,0.01317694,70072.0,70070.0,0.142714]
[1730424297020,0.165705,70075.0,70070.0,0.142714]
[1730424297307,0.01317694,70071.0,70070.0,0.142714]
[1730424297523,0.0777,70088.0,70070.0,0.2961288]
[1730424297524,0.21255491,70087.0,70070.0,0.2961288]
[1730424297723,0.21255491,70087.0,70080.0,0.142692]
[1730424297946,0.01317694,70083.0,70080.0,0.142692]
[1730424298146,0.0777,70088.0,70080.0,0.142692]
[1730424298343,0.0777,70088.0,70071.0,0.21255491]
[1730424298344,0.142701,70077.0,70071.0,0.21255491]
[1730424298564,0.142701,70077.0,70072.0,0.14915542]
[1730424298565,0.1427,70077.0,70072.0,0.14915542]
[1730424298863,0.285379,70082.0,70076.0,0.1427]
[1730424298983,0.142693,70081.0,70076.0,0.1427]
[1730424299409,0.285379,70082.0,70074.0,0.428116]
[1730424299410,0.142695,70080.0,70074.0,0.428116]
[1730424301520,0.142695,70080.0,70075.0,0.142703]
[1730424301806,0.285379,70082.0,70075.0,0.142703]
[1730424301807,0.023,70082.0,70079.0,0.142695]
[1730424302147,0.023,70082.0,70077.0,0.142699]
[1730424302542,0.023,70084.0,70077.0,0.142699]
[1730424302756,0.023,70084.0,70072.0,0.13845525]
[1730424303645,0.14272,70067.0,70066.0,0.000822]
[1730424303844,0.16572,70067.0,70066.0,0.000822]
[1730424305011,0.24492,70067.0,70066.0,0.000822]
[1730424306056,0.38837525,70067.0,70066.0,0.000822]
[1730424307202,0.58287525,70067.0,70066.0,0.000822]
[1730424310345,0.57787525,70067.0,70066.0,0.000822]
[1730424310561,0.22192,70067.0,70066.0,0.000822]
[1730424310769,0.14272,70067.0,70066.0,0.000822]
[1730424312717,0.15587961,70067.0,70066.0,0.000822]
[1730424313326,0.17887961,70067.0,70066.0,0.000822]
[1730424314638,0.27107961,70067.0,70066.0,0.000822]
[1730424314836,0.48703486,70067.0,70066.0,0.000822]
[1730424315423,0.49203486,70067.0,70066.0,0.000822]
[1730424320240,0.34857961,70067.0,70066.0,0.000822]
[1730424324682,0.7013733,70067.0,70066.0,0.000822]
[1730424324887,0.9513733,70067.0,70066.0,0.000822]
[1730424325119,0.9513733,70067.0,70066.0,1e-06]
[1730424325253,0.9513733,70067.0,70054.0,0.21255491]
[1730424325254,0.451744,70055.0,70054.0,0.21255491]
[1730424325634,0.70414403,70055.0,70054.0,0.21255491]
[1730424325819,0.142763,70046.0,70045.0,0.21255491]
[1730424325974,0.165763,70046.0,70045.0,0.21255491]
[1730424326180,0.165763,70046.0,70036.0,0.21255491]
[1730424326181,0.142781,70037.0,70036.0,0.21255491]
[1730424326589,0.285553,70040.0,70030.0,0.0786]
[1730424326590,0.14279,70033.0,70030.0,0.0786]
[1730424326835,0.01312892,70037.0,70030.0,0.0786]
[1730424327041,0.023,70039.0,70030.0,0.0786]
[1730424327280,0.01312892,70036.0,70034.0,0.21255491]
[1730424327466,0.01312892,70036.0,70030.0,0.0786]
[1730424327467,0.023,70041.0,70030.0,0.0786]
[1730424327681,0.01312892,70035.0,70030.0,0.0786]
[1730424327840,0.142781,70038.0,70032.0,0.142791]
[1730424328188,0.01312892,70034.0,70032.0,0.142791]
[1730424328317,0.01312892,70034.0,70030.0,0.221394]
[1730424328523,0.142782,70037.0,70030.0,0.221394]
[1730424328819,0.01312892,70036.0,70031.0,0.285587]
[1730424329018,0.142779,70038.0,70033.0,0.142789]
[1730424329226,0.308534,70045.0,70032.0,0.39952778]
[1730424329227,0.01312892,70035.0,70032.0,0.39952778]
[1730424329430,0.176,70055.0,70034.0,0.571149]
[1730424329629,0.142767,70045.0,70035.0,0.13845525]
[1730424329887,0.285526,70046.0,70036.0,0.142783]
[1730424330063,0.0789,70055.0,70038.0,0.142778]
[1730424330064,0.1,70051.0,70038.0,0.142778]
[1730424330286,0.142768,70044.0,70038.0,0.142778]
[1730424330535,0.285502,70052.0,70044.0,0.142767]
[1730424330703,0.1,70060.0,70044.0,0.142767]
[1730424330704,0.142757,70049.0,70044.0,0.142767]
[1730424330906,0.21255491,70053.0,70039.0,0.0823]
[1730424330907,0.142774,70041.0,70039.0,0.0823]
[1730424331100,0.28554,70043.0,70039.0,0.0823]
[1730424331368,0.142775,70040.0,70039.0,0.0823]
[1730424332811,0.285502,70052.0,70039.0,0.0823]
[1730424333018,0.142774,70041.0,70039.0,0.0823]
[1730424334808,0.285541,70043.0,70039.0,0.0823]
[1730424334965,0.142775,70040.0,70039.0,0.0823]
[1730424339309,0.142775,70040.0,70039.0,0.083123]
[1730424340549,0.142768,70044.0,70039.0,0.2259]
[1730424340750,0.14277,70043.0,70039.0,0.083123]
[1730424341334,0.285538,70043.0,70039.0,0.083123]
[1730424341549,0.142775,70040.0,70039.0,0.000823]
[1730424342519,0.15587245,70040.0,70039.0,0.000823]